{"text_format":"1","workbook":"xlsx","n_sheets":1,"sheets":["ds17"],"not_rendered":{"charts":0,"images":1,"macros":1,"external_links":0,"defined_names":1,"comments":1,"pivot_tables":0},"unopened":[],"bounds":{"document_bytes":16777216,"sheet_cells":100000,"rows_first":2000,"rows_last":500,"rows_between":2000,"halvings":0,"cell_chars":16384,"cell_head_chars":4096},"cells_cut":0,"cells_raw":0,"read":"whole","date_system":"1900"}

{"sheet":"ds17","index":0,"n_rows":20,"n_cols":30,"rows_kept":20,"cut":false,"hidden":false,"merged":[[0,2,0,9],[1,2,1,9],[2,2,2,9],[3,2,3,9],[8,3,8,17],[8,0,9,0],[8,1,9,1],[8,2,9,2],[8,18,9,18],[8,19,8,29]]}
[null,null,"Superintendencia del Mercado de Valores"]
[null,null,"Sociedades de Inversión"]
[null,null,"  DS-17 Activos Totales"]
[null,null,"  Versión 1.2"]
["Sociedad de Inversión:"]
["Código*:"]
["Período*:"]
["Los campos con asterisco (*) son obligatorios."]
["Período*","Monto Total de Inversión  (en Balboas)","Monto Total de Activos Financieros   (en Balboas)","Activos Financieros",null,null,null,null,null,null,null,null,null,null,null,null,null,null,"Monto Total de Activos No Financieros   (en Balboas)","Activos No Financieros"]
[null,null,null,"Efectivo","Acciones Comunes","Acciones Preferidas","Acciones o Cuotas de Participación","Bonos Privados","Bonos Estatales","Letras del Tesoro","Notas del Tesoro","Valores Comerciales Negociables","Futuros","Opciones","Notas Estructuradas","Metales","Otros*","Detallar",null,"Bienes Inmuebles Construidos","Bienes Inmuebles en fase de Construcción","Bienes Inmuebles que no Cuentan con un Anteproyecto","Compraventa y Promesa de Compraventa de Bienes Inmuebles","Inversiones con Derechos Reales sobre Bienes Inmuebles","Bienes Inmuebles Derivados de Concesiones","Prestamos Privados","Inversiones Alternativas *","Otros*","Detallar Invesiones Alternativas /Otros","Inversiones Incidentales"]
[null,{"$f":"SUM(C11,S11,AD11)","v":0},{"$f":"SUM(D11:Q11)","v":0},null,null,null,null,null,null,null,null,null,null,null,null,null,null,null,{"$f":"SUM(T11:AB11)","v":0}]
[null,{"$f":"SUM(C12,S12,AD12)","v":0},{"$f":"SUM(D12:Q12)","v":0},null,null,null,null,null,null,null,null,null,null,null,null,null,null,null,{"$f":"SUM(T12:AB12)","v":0}]
[null,0,0,null,null,null,null,null,null,null,null,null,null,null,null,null,null,null,0]
[null,0,0,null,null,null,null,null,null,null,null,null,null,null,null,null,null,null,0]
[null,0,0,null,null,null,null,null,null,null,null,null,null,null,null,null,null,null,0]
[null,0,0,null,null,null,null,null,null,null,null,null,null,null,null,null,null,null,0]
[null,0,0,null,null,null,null,null,null,null,null,null,null,null,null,null,null,null,0]
[null,0,0,null,null,null,null,null,null,null,null,null,null,null,null,null,null,null,0]
[null,0,0,null,null,null,null,null,null,null,null,null,null,null,null,null,null,null,0]
[null,0,0,null,null,null,null,null,null,null,null,null,null,null,null,null,null,null,0]